fUSD/lending_fUSD_20240714
["ID","MTS","AMOUNT","RATE_DAILY","PERIOD"]
[332052975,1720944643159,-515.44,0.00013698,2]
[332052976,1720944643169,-500.0,0.00013698,2]
[332052978,1720944643178,-500.0,0.00013698,2]
[332052980,1720944643188,-500.0,0.00013698,2]
[332052983,1720944643198,-500.0,0.00013698,2]
[332052985,1720944643208,-500.0,0.00013698,2]
[332052986,1720944643218,-1256.97,0.00013698,2]
[332052988,1720944643227,-500.0,0.00013698,2]
[332052990,1720944643236,-500.0,0.00013698,2]
[332052992,1720944643247,-500.0,0.00013698,2]
[332052994,1720944643256,-502.48,0.00013698,2]
[332052996,1720944643266,-500.0,0.00013698,2]
[332052998,1720944643275,-500.0,0.00013698,2]
[332053000,1720944643286,-500.0,0.00013698,2]
[332053003,1720944643296,-765.47,0.00013698,2]
[332053005,1720944643306,-500.0,0.00013698,2]
[332053007,1720944643315,-1089.42,0.00013698,2]
[332053009,1720944643326,-500.0,0.00013698,2]
[332053011,1720944643336,-500.0,0.00013698,2]
[332053013,1720944643346,-500.0,0.00013698,2]
[332053015,1720944643356,-702.42,0.00013698,2]
[332053017,1720944643366,-500.0,0.00013698,2]
[332053019,1720944643376,-500.0,0.00013698,2]
[332053021,1720944643385,-500.0,0.00013698,2]
[332053023,1720944643395,-500.0,0.00013698,2]
[332053025,1720944643405,-500.0,0.00013698,2]
[332053027,1720944643414,-500.0,0.00013698,2]
[332053029,1720944643424,-1029.37,0.00013698,2]
[332053031,1720944643434,-500.0,0.00013698,2]
[332053033,1720944643443,-500.0,0.00013698,2]
[332053035,1720944643453,-607.64315722,0.00013698,2]
[332053037,1720944643462,-500.0,0.00013698,2]
[332053039,1720944643472,-500.0,0.00013698,2]
[332053041,1720944643481,-500.0,0.00013698,2]
[332053043,1720944643491,-500.0,0.00013698,2]
[332053045,1720944643500,-1188.58,0.00013698,2]
[332053047,1720944643510,-500.0,0.00013698,2]
[332053049,1720944643520,-878.86,0.00013698,2]
[332053051,1720944643529,-1040.9,0.00013698,2]
[332053052,1720944643540,-500.0,0.00013698,2]
[332053054,1720944643550,-500.0,0.00013698,2]
[332053056,1720944643560,-500.0,0.00013698,2]
[332053059,1720944643570,-500.0,0.00013698,2]
[332053061,1720944643579,-1332.58,0.00013698,2]
[332053063,1720944643590,-500.0,0.00013698,2]
[332053065,1720944643600,-500.0,0.00013698,2]
[332053067,1720944643610,-644.11,0.00013698,2]
[332053069,1720944643621,-500.0,0.00013698,2]
[332053071,1720944643632,-538.49669756,0.00013698,2]
[332053073,1720944643643,-695.94,0.00013698,2]
[332053075,1720944643652,-500.0,0.00013698,2]
[332053077,1720944643665,-500.0,0.00013698,2]
[332053080,1720944643676,-500.0,0.00013698,2]
[332053082,1720944643688,-500.0,0.00013698,2]
[332053084,1720944643697,-757.44,0.00013698,2]
[332053086,1720944643706,-500.0,0.00013698,2]
[332053088,1720944643716,-1082.22,0.00013698,2]
[332053090,1720944643725,-500.0,0.00013698,2]
[332053092,1720944643735,-748.29,0.00013698,2]
[332053094,1720944643745,-766.6,0.00013698,2]
[332053096,1720944643756,-1194.25,0.00013698,2]
[332053098,1720944643766,-739.05,0.00013698,2]
[332053100,1720944643776,-500.0,0.00013698,2]
[332053101,1720944643787,-500.0,0.00013698,2]
[332053102,1720944643796,-828.75,0.00013698,2]
[332053103,1720944643806,-500.0,0.00013698,2]
[332053104,1720944643816,-500.0,0.00013698,2]
[332053105,1720944643827,-500.0,0.00013698,2]
[332053106,1720944643836,-500.0,0.00013698,2]
[332053107,1720944643847,-500.0,0.00013698,2]
[332053108,1720944643856,-500.0,0.00013698,2]
[332053110,1720944643866,-831.45,0.00013698,2]
[332053112,1720944643876,-500.0,0.00013698,2]
[332053114,1720944643886,-500.0,0.00013698,2]
[332053116,1720944643896,-500.0,0.00013698,2]
[332053118,1720944643906,-500.0,0.00013698,2]
[332053120,1720944643917,-500.0,0.00013698,2]
[332053122,1720944643927,-849.09,0.00013698,2]
[332053124,1720944643937,-543.18,0.00013698,2]
[332053126,1720944643947,-816.29,0.00013698,2]
[332053128,1720944643956,-500.0,0.00013698,2]
[332053130,1720944643966,-500.0,0.00013698,2]
[332053132,1720944643976,-500.0,0.00013698,2]
[332053134,1720944643985,-500.0,0.00013698,2]
[332053136,1720944643995,-500.0,0.00013698,2]
[332053138,1720944644005,-1015.12,0.00013698,2]
[332053140,1720944644015,-1008.51,0.00013698,2]
[332053142,1720944644025,-596.08,0.00013698,2]
[332053144,1720944644035,-500.0,0.00013698,2]
[332053146,1720944644044,-500.0,0.00013698,2]
[332053148,1720944644054,-518.07718486,0.00013698,2]
[332053150,1720944644063,-500.0,0.00013698,2]
[332053152,1720944644073,-984.1,0.00013698,2]
[332053154,1720944644083,-500.0,0.00013698,2]
[332053156,1720944644093,-500.0,0.00013698,2]
[332053158,1720944644103,-862.18,0.00013698,2]
[332053160,1720944644112,-500.0,0.00013698,2]
[332053162,1720944644122,-500.0,0.00013698,2]
[332053164,1720944644131,-785.47,0.00013698,2]
[332053166,1720944644141,-500.0,0.00013698,2]
[332053168,1720944644151,-500.0,0.00013698,2]
[332053170,1720944644162,-500.0,0.00013698,2]
[332053172,1720944644172,-981.46,0.00013698,2]
[332053174,1720944644181,-500.0,0.00013698,2]
[332053176,1720944644191,-1104.22,0.00013698,2]
[332053178,1720944644200,-500.0,0.00013698,2]
[332053180,1720944644210,-703.61,0.00013698,2]
[332053182,1720944644220,-500.0,0.00013698,2]
[332053184,1720944644230,-500.0,0.00013698,2]
[332053186,1720944644239,-1735.14,0.00013698,2]
[332053188,1720944644248,-500.0,0.00013698,2]
[332053190,1720944644258,-500.0,0.00013698,2]
[332053192,1720944644268,-634.42,0.00013698,2]
[332053194,1720944644278,-500.0,0.00013698,2]
[332053196,1720944644291,-704.83,0.00013698,2]
[332053198,1720944644303,-699.49,0.00013698,2]
[332053201,1720944644314,-484.49781724,0.00013698,2]
[332053203,1720944644324,-500.0,0.00013698,2]
[332053205,1720944644334,-500.0,0.00013698,2]
[332053207,1720944644343,-500.0,0.00013698,2]
[332053209,1720944644352,-500.0,0.00013698,2]
[332053211,1720944644362,-500.0,0.00013698,2]
[332053213,1720944644372,-500.0,0.00013698,2]
[332053215,1720944644382,-688.54,0.00013698,2]
[332053217,1720944644392,-730.8,0.00013698,2]
[332053219,1720944644401,-500.0,0.00013698,2]
[332053221,1720944644411,-1161.87,0.00013698,2]
[332053223,1720944644420,-500.0,0.00013698,2]
[332053225,1720944644430,-500.0,0.00013698,2]
[332053227,1720944644439,-500.0,0.00013698,2]
[332053229,1720944644449,-981.53,0.00013698,2]
[332053231,1720944644458,-186.34981001,0.00013698,2]
[332053233,1720944644468,-500.0,0.00013698,2]
[332053235,1720944644477,-500.0,0.00013698,2]
[332053237,1720944644488,-542.72,0.00013698,2]
[332053240,1720944644499,-814.22,0.00013698,2]
[332053242,1720944644508,-500.0,0.00013698,2]
[332053244,1720944644518,-733.24,0.00013698,2]
[332053246,1720944644528,-500.0,0.00013698,2]
[332053248,1720944644540,-500.0,0.00013698,2]
[332053250,1720944644549,-500.0,0.00013698,2]
[332053252,1720944644561,-900.42,0.00013698,2]
[332053254,1720944644571,-500.0,0.00013698,2]
[332053256,1720944644580,-500.0,0.00013698,2]
[332053258,1720944644589,-500.0,0.00013698,2]
[332053260,1720944644597,-500.0,0.00013698,2]
[332053262,1720944644607,-500.0,0.00013698,2]
[332053264,1720944644616,-1126.21,0.00013698,2]
[332053266,1720944644625,-500.0,0.00013698,2]
[332053268,1720944644635,-500.0,0.00013698,2]
[332053270,1720944644645,-500.0,0.00013698,2]
[332053272,1720944644654,-500.0,0.00013698,2]
[332053274,1720944644664,-500.0,0.00013698,2]
[332053276,1720944644673,-500.0,0.00013698,2]
[332053278,1720944644683,-665.99,0.00013698,2]
[332053280,1720944644693,-500.0,0.00013698,2]
[332053282,1720944644703,-500.0,0.00013698,2]
[332053284,1720944644713,-546.39,0.00013698,2]
[332053286,1720944644722,-500.0,0.00013698,2]
[332053288,1720944644731,-697.26,0.00013698,2]
[332053290,1720944644741,-686.52,0.00013698,2]
[332053292,1720944644755,-697.79,0.00013698,2]
[332053294,1720944644766,-735.3,0.00013698,2]
[332053296,1720944644775,-500.0,0.00013698,2]
[332053298,1720944644789,-500.0,0.00013698,2]
[332053300,1720944644798,-500.0,0.00013698,2]
[332053302,1720944644808,-500.0,0.00013698,2]
[332053304,1720944644818,-500.0,0.00013698,2]
[332053306,1720944644829,-1039.36,0.00013698,2]
[332053308,1720944644839,-1038.98,0.00013698,2]
[332053310,1720944644849,-500.0,0.00013698,2]
[332053312,1720944644858,-500.0,0.00013698,2]
[332053314,1720944644869,-588.86,0.00013698,2]
[332053316,1720944644879,-500.0,0.00013698,2]
[332053318,1720944644889,-749.01,0.00013698,2]
[332053320,1720944644899,-500.0,0.00013698,2]
[332053322,1720944644909,-1568.94,0.00013698,2]
[332053324,1720944644919,-826.74,0.00013698,2]
[332053326,1720944644928,-500.0,0.00013698,2]
[332053328,1720944644938,-966.66,0.00013698,2]
[332053330,1720944644949,-500.0,0.00013698,2]
[332053332,1720944644959,-716.2,0.00013698,2]
[332053334,1720944644968,-1331.68,0.00013698,2]
[332053336,1720944644978,-500.0,0.00013698,2]
[332053338,1720944644987,-1142.0,0.00013698,2]
[332053340,1720944644997,-857.39,0.00013698,2]
[332053342,1720944645007,-500.0,0.00013698,2]
[332053345,1720944645016,-691.76,0.00013698,2]
[332053347,1720944645026,-500.0,0.00013698,2]
[332053349,1720944645037,-500.0,0.00013698,2]
[332053351,1720944645046,-1459.14,0.00013698,2]
[332053353,1720944645055,-1026.42,0.00013698,2]
[332053355,1720944645065,-634.68,0.00013698,2]
[332053357,1720944645074,-1139.81,0.00013698,2]
[332053359,1720944645083,-500.0,0.00013698,2]
[332053361,1720944645093,-500.0,0.00013698,2]
[332053363,1720944645102,-430.4,0.00013698,2]
[332053365,1720944645111,-500.0,0.00013698,2]
[332053367,1720944645121,-767.6,0.00013698,2]
[332053369,1720944645130,-500.0,0.00013698,2]
[332053371,1720944645140,-500.0,0.00013698,2]
[332053373,1720944645149,-500.0,0.00013698,2]
[332053375,1720944645159,-830.17,0.00013698,2]
[332053377,1720944645168,-1206.4,0.00013698,2]
[332053387,1720944645246,-624.62,0.00013698,2]
[332053389,1720944645256,-573.8,0.00013698,2]
[332053391,1720944645265,-500.0,0.00013698,2]
[332053393,1720944645274,-500.0,0.00013698,2]
[332053395,1720944645284,-500.0,0.00013698,2]
[332053397,1720944645293,-500.0,0.00013698,2]
[332053399,1720944645302,-500.0,0.00013698,2]
[332053402,1720944645311,-500.0,0.00013698,2]
[332053405,1720944645321,-500.0,0.00013698,2]
[332053407,1720944645330,-500.0,0.00013698,2]
[332053409,1720944645339,-669.03,0.00013698,2]
[332053411,1720944645349,-500.0,0.00013698,2]
[332053413,1720944645358,-500.0,0.00013698,2]
[332053415,1720944645368,-573.27,0.00013698,2]
[332053417,1720944645378,-1222.83,0.00013698,2]
[332053419,1720944645388,-500.0,0.00013698,2]
[332053421,1720944645399,-872.95,0.00013698,2]
[332053423,1720944645408,-500.0,0.00013698,2]
[332053425,1720944645419,-500.0,0.00013698,2]
[332053427,1720944645428,-500.0,0.00013698,2]
[332053429,1720944645440,-500.0,0.00013698,2]
[332053431,1720944645450,-855.07,0.00013698,2]
[332053433,1720944645460,-626.86,0.00013698,2]
[332053435,1720944645469,-500.0,0.00013698,2]
[332053437,1720944645479,-500.0,0.00013698,2]
[332053439,1720944645488,-500.0,0.00013698,2]
[332053441,1720944645497,-500.0,0.00013698,2]
[332053443,1720944645507,-500.0,0.00013698,2]
[332053445,1720944645516,-500.0,0.00013698,2]
[332053447,1720944645525,-500.0,0.00013698,2]
[332053449,1720944645534,-500.0,0.00013698,2]
[332053451,1720944645543,-534.51,0.00013698,2]
[332053453,1720944645553,-688.23,0.00013698,2]
[332053455,1720944645562,-500.0,0.00013698,2]
[332053457,1720944645572,-500.0,0.00013698,2]
[332053459,1720944645582,-650.58,0.00013698,2]
[332053461,1720944645593,-500.0,0.00013698,2]
[332053463,1720944645602,-500.0,0.00013698,2]
[332053465,1720944645612,-1076.79,0.00013698,2]
[332053467,1720944645622,-500.0,0.00013698,2]
[332053469,1720944645631,-1035.73,0.00013698,2]
[332053471,1720944645641,-500.0,0.00013698,2]
[332053473,1720944645650,-500.0,0.00013698,2]
[332053475,1720944645660,-500.0,0.00013698,2]
[332053477,1720944645670,-500.0,0.00013698,2]
[332053479,1720944645679,-500.0,0.00013698,2]
[332053481,1720944645689,-558.02,0.00013698,2]
[332053483,1720944645699,-636.95,0.00013698,2]
[332053485,1720944645708,-656.29,0.00013698,2]
[332053487,1720944645718,-536.21,0.00013698,2]
[332053489,1720944645728,-500.0,0.00013698,2]
[332053490,1720944645737,-500.0,0.00013698,2]
[332053491,1720944645749,-612.67,0.00013698,2]
[332053492,1720944645759,-500.0,0.00013698,2]
[332053493,1720944645769,-500.0,0.00013698,2]
[332053494,1720944645779,-500.0,0.00013698,2]
[332053495,1720944645790,-1545.79,0.00013698,2]
[332053496,1720944645800,-500.0,0.00013698,2]
[332053497,1720944645809,-742.47,0.00013698,2]
[332053499,1720944645819,-500.0,0.00013698,2]
[332053501,1720944645831,-1159.61,0.00013698,2]
[332053503,1720944645840,-537.33,0.00013698,2]
[332053505,1720944645849,-573.62,0.00013698,2]
[332053507,1720944645859,-1906.72,0.00013698,2]
[332053509,1720944645868,-500.0,0.00013698,2]
[332053511,1720944645879,-500.0,0.00013698,2]
[332053513,1720944645889,-500.0,0.00013698,2]
[332053515,1720944645900,-500.0,0.00013698,2]
[332053517,1720944645909,-500.0,0.00013698,2]
[332053519,1720944645920,-500.0,0.00013698,2]
[332053521,1720944645929,-500.0,0.00013698,2]
[332053523,1720944645938,-500.0,0.00013698,2]
[332053525,1720944645947,-584.88,0.00013698,2]
[332053527,1720944645957,-514.79,0.00013698,2]
[332053529,1720944645968,-555.56,0.00013698,2]
[332053531,1720944645978,-572.39,0.00013698,2]
[332053533,1720944645989,-428.65685967,0.00013698,2]
[332053535,1720944645999,-500.0,0.00013698,2]
[332053537,1720944646009,-757.5,0.00013698,2]
[332053539,1720944646018,-1339.73,0.00013698,2]
[332053541,1720944646027,-500.0,0.00013698,2]
[332053543,1720944646039,-631.62564042,0.00013698,2]
[332053545,1720944646050,-764.15,0.00013698,2]
[332053547,1720944646059,-1239.65,0.00013698,2]
[332053549,1720944646071,-1576.22,0.00013698,2]
[332053551,1720944646080,-623.47,0.00013698,2]
[332053553,1720944646090,-500.0,0.00013698,2]
[332053555,1720944646098,-1012.69,0.00013698,2]
[332053557,1720944646107,-500.0,0.00013698,2]
[332053559,1720944646117,-955.24,0.00013698,2]
[332053561,1720944646126,-965.64,0.00013698,2]
[332053563,1720944646135,-500.0,0.00013698,2]
[332053565,1720944646145,-314.62082042,0.00013698,2]
[332053567,1720944646155,-1041.62,0.00013698,2]
[332053569,1720944646165,-500.0,0.00013698,2]
[332053571,1720944646174,-515.28,0.00013698,2]
[332053573,1720944646183,-1265.69,0.00013698,2]
[332053575,1720944646194,-969.62,0.00013698,2]
[332053577,1720944646203,-1377.61,0.00013698,2]
[332053579,1720944646213,-973.16,0.00013698,2]
[332053581,1720944646222,-1828.8,0.00013698,2]
[332053583,1720944646231,-500.0,0.00013698,2]
[332053585,1720944646241,-746.21,0.00013698,2]
[332053587,1720944646250,-500.0,0.00013698,2]
[332053589,1720944646259,-500.0,0.00013698,2]
[332053591,1720944646268,-549.59,0.00013698,2]
[332053593,1720944646278,-500.0,0.00013698,2]
[332053595,1720944646289,-500.0,0.00013698,2]
[332053597,1720944646298,-588.1,0.00013698,2]
[332053599,1720944646307,-1001.22,0.00013698,2]
[332053601,1720944646317,-500.0,0.00013698,2]
[332053603,1720944646326,-500.0,0.00013698,2]
[332053605,1720944646335,-500.0,0.00013698,2]
[332053607,1720944646345,-870.2,0.00013698,2]
[332053609,1720944646355,-500.0,0.00013698,2]
[332053611,1720944646364,-568.14,0.00013698,2]
[332053613,1720944646374,-500.0,0.00013698,2]
[332053615,1720944646383,-608.64,0.00013698,2]
[332053617,1720944646393,-500.0,0.00013698,2]
[332053619,1720944646402,-549.39,0.00013698,2]
[332053621,1720944646411,-500.0,0.00013698,2]
[332053623,1720944646421,-500.0,0.00013698,2]
[332053625,1720944646430,-727.25,0.00013698,2]
[332053627,1720944646439,-500.0,0.00013698,2]
[332053629,1720944646449,-500.0,0.00013698,2]
[332053631,1720944646459,-500.0,0.00013698,2]
[332053633,1720944646469,-739.32,0.00013698,2]
[332053635,1720944646479,-1171.55,0.00013698,2]
[332053637,1720944646489,-1231.66,0.00013698,2]
[332053639,1720944646498,-500.0,0.00013698,2]
[332053641,1720944646508,-500.0,0.00013698,2]
[332053643,1720944646518,-500.0,0.00013698,2]
[332053645,1720944646527,-500.0,0.00013698,2]
[332053647,1720944646537,-500.0,0.00013698,2]
[332053649,1720944646547,-500.0,0.00013698,2]
[332053651,1720944646558,-500.0,0.00013698,2]
[332053653,1720944646567,-8626.36,0.00013698,2]
[332053655,1720944646576,-500.0,0.00013698,2]
[332053657,1720944646587,-500.0,0.00013698,2]
[332053659,1720944646597,-500.0,0.00013698,2]
[332053661,1720944646606,-500.0,0.00013698,2]
[332053663,1720944646616,-500.0,0.00013698,2]
[332053664,1720944646626,-908.97,0.00013698,2]
[332053667,1720944646636,-500.0,0.00013698,2]
[332053669,1720944646646,-500.0,0.00013698,2]
[332053670,1720944646655,-802.45,0.00013698,2]
[332053673,1720944646665,-500.0,0.00013698,2]
[332053675,1720944646675,-1685.54,0.00013698,2]
[332053676,1720944646684,-992.06,0.00013698,2]
[332053678,1720944646694,-1561.02,0.00013698,2]
[332053680,1720944646703,-812.48,0.00013698,2]
[332053682,1720944646712,-500.0,0.00013698,2]
[332053685,1720944646722,-1235.59,0.00013698,2]
[332053688,1720944646732,-500.0,0.00013698,2]
[332053693,1720944646742,-500.0,0.00013698,2]
[332053694,1720944646754,-500.0,0.00013698,2]
[332053698,1720944646764,-979.82,0.00013698,2]
[332053700,1720944646774,-500.0,0.00013698,2]
[332053705,1720944646784,-500.0,0.00013698,2]
[332053706,1720944646794,-500.0,0.00013698,2]
[332053711,1720944646804,-1016.96,0.00013698,2]
[332053713,1720944646814,-1004.21,0.00013698,2]
[332053715,1720944646826,-500.0,0.00013698,2]
[332053718,1720944646835,-1044.15,0.00013698,2]
[332053721,1720944646844,-500.0,0.00013698,2]
[332053724,1720944646854,-500.0,0.00013698,2]
[332053727,1720944646863,-1311.36,0.00013698,2]
[332053730,1720944646873,-500.0,0.00013698,2]
[332053732,1720944646883,-500.0,0.00013698,2]
[332053734,1720944646893,-500.0,0.00013698,2]
[332053737,1720944646903,-672.14,0.00013698,2]
[332053740,1720944646913,-1294.38,0.00013698,2]
[332053743,1720944646923,-500.0,0.00013698,2]
[332053746,1720944646933,-500.0,0.00013698,2]
[332053749,1720944646942,-500.0,0.00013698,2]
[332053752,1720944646953,-500.0,0.00013698,2]
[332053755,1720944646962,-707.72,0.00013698,2]
[332053758,1720944646973,-726.21,0.00013698,2]
[332053761,1720944646982,-500.0,0.00013698,2]
[332053764,1720944646992,-500.0,0.00013698,2]
[332053767,1720944647001,-500.0,0.00013698,2]
[332053770,1720944647011,-500.0,0.00013698,2]
[332053773,1720944647021,-1251.7,0.00013698,2]
[332053776,1720944647030,-1022.59,0.00013698,2]
[332053779,1720944647041,-500.0,0.00013698,2]
[332053782,1720944647050,-500.0,0.00013698,2]
[332053787,1720944647062,-500.0,0.00013698,2]
[332053790,1720944647071,-1131.2,0.00013698,2]
[332053793,1720944647081,-728.87,0.00013698,2]
[332053796,1720944647090,-500.0,0.00013698,2]
[332053798,1720944647100,-577.16,0.00013698,2]
[332053802,1720944647110,-1299.6,0.00013698,2]
[332053805,1720944647119,-500.0,0.00013698,2]
[332053808,1720944647129,-500.0,0.00013698,2]
[332053811,1720944647138,-500.0,0.00013698,2]
[332053814,1720944647148,-1018.01,0.00013698,2]
[332053816,1720944647157,-3892.56,0.00013698,2]
[332053819,1720944647167,-500.0,0.00013698,2]
[332053822,1720944647177,-1493.87,0.00013698,2]
[332053823,1720944647186,-596.53,0.00013698,2]
[332053826,1720944647196,-826.16,0.00013698,2]
[332053829,1720944647206,-500.0,0.00013698,2]
[332053831,1720944647215,-500.0,0.00013698,2]
[332053833,1720944647225,-254.62129342,0.00013698,2]
[332053835,1720944647234,-637.56,0.00013698,2]
[332053837,1720944647244,-1688.78,0.00013698,2]
[332053839,1720944647254,-500.0,0.00013698,2]
[332053841,1720944647264,-773.37,0.00013698,2]
[332053843,1720944647273,-500.0,0.00013698,2]
[332053845,1720944647283,-1311.12,0.00013698,2]
[332053847,1720944647293,-500.0,0.00013698,2]
[332053849,1720944647303,-623.47,0.00013698,2]
[332053851,1720944647312,-330.55301852,0.00013698,2]
[332053853,1720944647322,-500.0,0.00013698,2]
[332053856,1720944647334,-4364.13,0.00013698,2]
[332053858,1720944647343,-1332.21,0.00013698,2]
[332053860,1720944647353,-1655.02,0.00013698,2]
[332053862,1720944647362,-500.0,0.00013698,2]
[332053864,1720944647372,-670.9,0.00013698,2]
[332053866,1720944647381,-1396.58,0.00013698,2]
[332053868,1720944647391,-672.79,0.00013698,2]
[332053870,1720944647401,-500.0,0.00013698,2]
[332053872,1720944647410,-500.0,0.00013698,2]
[332053874,1720944647419,-500.0,0.00013698,2]
[332053876,1720944647429,-500.0,0.00013698,2]
[332053878,1720944647439,-3898.98,0.00013698,2]
[332053880,1720944647448,-2643.16,0.00013698,2]
[332053882,1720944647459,-500.0,0.00013698,2]
[332053884,1720944647470,-601.97,0.00013698,2]
[332053887,1720944647481,-2195.08,0.00013698,2]
[332053889,1720944647492,-500.0,0.00013698,2]
[332053891,1720944647502,-500.0,0.00013698,2]
[332053893,1720944647514,-500.0,0.00013698,2]
[332053895,1720944647524,-828.77,0.00013698,2]
[332053897,1720944647536,-500.0,0.00013698,2]
[332053898,1720944647545,-636.92,0.00013698,2]
[332053899,1720944647555,-500.0,0.00013698,2]
[332053900,1720944647566,-500.0,0.00013698,2]
[332053901,1720944647576,-500.0,0.00013698,2]
[332053902,1720944647589,-214.90022024,0.00013698,2]
[332053903,1720944647599,-1608.4,0.00013698,2]
[332053905,1720944647609,-500.0,0.00013698,2]
[332053907,1720944647620,-809.07,0.00013698,2]
[332053909,1720944647629,-500.0,0.00013698,2]
[332053911,1720944647639,-500.0,0.00013698,2]
[332053913,1720944647648,-1293.57,0.00013698,2]
[332053915,1720944647657,-1712.22,0.00013698,2]
[332053917,1720944647666,-500.0,0.00013698,2]
[332053919,1720944647675,-672.88,0.00013698,2]
[332053921,1720944647685,-500.0,0.00013698,2]
[332053923,1720944647694,-500.0,0.00013698,2]
[332053925,1720944647704,-570.52,0.00013698,2]
[332053927,1720944647714,-500.0,0.00013698,2]
[332053929,1720944647723,-500.0,0.00013698,2]
[332053931,1720944647732,-500.0,0.00013698,2]
[332053933,1720944647743,-1374.17,0.00013698,2]
[332053935,1720944647756,-500.0,0.00013698,2]
[332053937,1720944647765,-500.0,0.00013698,2]
[332053939,1720944647775,-660.62,0.00013698,2]
[332053941,1720944647785,-500.0,0.00013698,2]
[332053943,1720944647794,-500.0,0.00013698,2]
[332053945,1720944647803,-500.0,0.00013698,2]
[332053947,1720944647812,-916.16,0.00013698,2]
[332053949,1720944647821,-500.0,0.00013698,2]
[332053950,1720944647834,-3321.54,0.00013698,2]
[332053952,1720944647843,-557.41,0.00013698,2]
[332053954,1720944647853,-500.0,0.00013698,2]
[332053956,1720944647862,-254.90903874,0.00013698,2]
[332053958,1720944647874,-500.0,0.00013698,2]
[332053960,1720944647883,-1225.96,0.00013698,2]
[332053962,1720944647894,-500.0,0.00013698,2]
[332053964,1720944647903,-500.0,0.00013698,2]
[332053966,1720944647912,-500.0,0.00013698,2]
[332053968,1720944647922,-500.0,0.00013698,2]
[332053970,1720944647931,-1555.82,0.00013698,2]
[332053971,1720944647941,-500.0,0.00013698,2]
[332053973,1720944647950,-500.0,0.00013698,2]
[332053975,1720944647959,-500.0,0.00013698,2]
[332053977,1720944647970,-500.0,0.00013698,2]
[332053979,1720944647979,-500.0,0.00013698,2]
[332053981,1720944647988,-1050.22,0.00013698,2]
[332053983,1720944647998,-666.72,0.00013698,2]
[332053985,1720944648008,-500.0,0.00013698,2]
[332053987,1720944648017,-500.0,0.00013698,2]
[332053988,1720944648026,-759.86,0.00013698,2]
[332053989,1720944648035,-500.0,0.00013698,2]
[332053990,1720944648044,-500.0,0.00013698,2]
[332053991,1720944648053,-500.0,0.00013698,2]
[332053992,1720944648063,-500.0,0.00013698,2]
[332053993,1720944648072,-672.62,0.00013698,2]
[332053994,1720944648082,-500.0,0.00013698,2]
[332053995,1720944648091,-1156.45,0.00013698,2]
[332053996,1720944648101,-517.56,0.00013698,2]
[332053997,1720944648110,-872.09,0.00013698,2]
[332053998,1720944648120,-500.0,0.00013698,2]
[332053999,1720944648130,-7925.43,0.00013698,2]